Cogmind - Beta 14 @@@ ROGUE MODE // 2025.03.02 @ 17:28:55 Player: Udabudha Result: Destroyed by S-10 Pest via exploding Nuclear Reactor Performance ------------- Evolutions (2) 1000 Regions Visited (7) 1400 Robots Destroyed (40) 200 Value Destroyed (1188) 1188 Prototype IDs (1) 20 Alien Tech Used (0) 0 Bonus (16) 16 TOTAL SCORE: 3824 Bonus ------- High Alert Combat Kills 16 Cogmind --------- Core Integrity 0/550 Matter 300/300 Energy 88/100 System Corruption 5% Temperature Cool (96) Movement Core (100) Ox1 Location -8/Materials Parts ------- > --- POWER (1) -------- (None) > --- PROPULSION (4) --- (None) > --- UTILITY (3) ------ Visual Processing Unit Advanced Targeting Computer > --- WEAPON (3) ------- Advanced Beam Cannon > --- INVENTORY (5) ---- Wheel High-capacity Battery (250) Heavy Armor Plating Sensor Drone Bay Peak State ------------ > --- POWER ------------ Light Deuterium Engine > --- PROPULSION ------- Aluminum Leg Aluminum Leg Aluminum Leg Aluminum Leg > --- UTILITY ---------- Small Storage Unit Visual Processing Unit Advanced Targeting Computer > --- WEAPON ----------- EM Shotgun Pulse Rifle High-powered Shotgun > --- INVENTORY -------- Wheel High-capacity Battery Heavy Armor Plating Sensor Drone Bay Advanced Beam Cannon Rocket Launcher [Rating: 23] Favorites ----------- Power Light Deuterium Engine Engine Light Deuterium Engine Power Core Light Nuclear Core Propulsion Aluminum Leg Leg Aluminum Leg Utility Small Storage Unit Storage Small Storage Unit Processor Visual Processing Unit Weapon Particle Gun Energy Gun Particle Gun Energy Cannon Particle Cannon Ballistic Gun High-powered Shotgun Launcher Rocket Launcher Build | -11 -10 -10 -9 -9 -9 -8 -8 ------- Run | Yrd Mat Min Mat Min Exi Min Mat Slots Evolved 4 | . . . 2 . . . 2 Power . | . . . . . . . . Propulsion 2 | . . . 2 . . . . Utility 1 | . . . . . . . 1 Weapon 1 | . . . . . . . 1 Parts Attached 34 | 7 7 . 9 . . 2 9 Power 6 | 2 1 . 2 . . . 1 Engine 5 | 2 1 . 1 . . . 1 Core 1 | . . . 1 . . . . Reactor . | . . . . . . . . Propulsion 9 | 2 2 . 4 . . . 1 Treads . | . . . . . . . . Leg 9 | 2 2 . 4 . . . 1 Wheel . | . . . . . . . . Hover . | . . . . . . . . Flight . | . . . . . . . . Utility 3 | 1 1 . . . . . 1 Device . | . . . . . . . . Storage 1 | 1 . . . . . . . Processor 2 | . 1 . . . . . 1 Hackware . | . . . . . . . . Protection . | . . . . . . . . Artifact . | . . . . . . . . Weapon 16 | 2 3 . 3 . . 2 6 Energy Gun 10 | 2 . . 3 . . 2 3 Energy Cannon 3 | . 2 . . . . . 1 Ballistic Gun 2 | . 1 . . . . . 1 Ballistic Cannon . | . . . . . . . . Launcher 1 | . . . . . . . 1 Special Weapon . | . . . . . . . . Impact Weapon . | . . . . . . . . Slashing Weapon . | . . . . . . . . Piercing Weapon . | . . . . . . . . Special Melee Weapon . | . . . . . . . . Unidentified Prototypes 1 | . . . . . . . 1 Parts Lost 18 | . 4 . . . . . 14 Power 3 | . 1 . . . . . 2 Propulsion 7 | . 2 . . . . . 5 Utility 1 | . . . . . . . 1 Weapon 7 | . 1 . . . . . 6 Highest Loss Streak 7 | . 3 . . . . . 7 To Critical Strikes . | . . . . . . . . Average Slot Usage (%) 95 | . 93 100 94 100 100 100 70 Engine 10 | . 13 14 9 11 11 11 4 Leg 38 | . 27 28 38 44 44 44 20 Storage 11 | . 14 14 11 11 11 11 7 Processor 11 | . 9 14 11 11 11 11 18 Energy Gun 18 | . 7 . 20 22 22 22 11 Energy Cannon 2 | . 18 28 1 . . . 1 Peak Build Rating 23 | 6 10 10 15 16 16 17 23 Average Rating 14 | 3 8 10 13 15 16 16 17 On Entrance 11 | . 6 10 10 15 16 16 17 Naked Turns . | . . . . . . . . Heaviest Build 25 | 14 18 16 16 16 16 16 25 Greatest Support 40 | 20 20 20 40 40 40 40 40 Greatest Overweight (x) 8 | . 1 . . . . . 8 Average Overweight (x) . | . . . . . . . . Largest Inventory Capacity 8 | 8 8 8 8 8 8 8 8 Average Capacity 7 | 6 8 8 8 8 8 8 7 Most Carried 8 | 6 8 7 8 8 8 8 8 Average Carried 7 | 3 7 6 7 7 7 8 6 Final Capacity 8 | 8 8 8 8 8 8 8 5 Final Carried 8 | 6 6 7 8 8 8 8 5 Class Distribution -------------------- 73% | Scavenger-Mutant 23% | Mutant Dominant Class ---------------- Mutant | -10/Materials Mutant | -10/Mines Scavenger-Mutant | -9/Materials Scavenger-Mutant | -9/Mines Scavenger-Mutant | -9/Exiles Scavenger-Mutant | -8/Mines Mutant | -8/Materials Resources | -11 -10 -10 -9 -9 -9 -8 -8 ----------- Run | Yrd Mat Min Mat Min Exi Min Mat Matter Collected 571 | 270 74 . 90 . . 20 117 Remotely . | . . . . . . . . Salvage Created 1417 | . 253 . 624 . . . 540 Parts 77 | . 13 . 39 . . . 25 Haulers Intercepted 2 | . . . 2 . . . . Recyclers Shooed . | . . . . . . . . Parts Field Recycled . | . . . . . . . . Retrieved Matter . | . . . . . . . . Parts Self-Destructed . | . . . . . . . . Prevented . | . . . . . . . . Kills | -11 -10 -10 -9 -9 -9 -8 -8 ------- Run | Yrd Mat Min Mat Min Exi Min Mat Combat Hostiles Destroyed 36 | . 8 . 18 . . . 10 Guns 24 | . 2 . 18 . . . 4 Cannons 8 | . 6 . . . . . 2 AOE 3 | . . . . . . . 3 Classes Destroyed 6 | . 2 . 1 . . . 3 Builder 2 | . . . . . . . 2 Hauler 2 | . . . 2 . . . . Swarmer 10 | . 3 . 7 . . . . Grunt 23 | . 5 . 11 . . . 7 Sentry 2 | . . . . . . . 2 Hunter 1 | . . . . . . . 1 Best Kill Streak 8 | . 3 . 6 . . . 8 Combat Bots Only 6 | . 3 . 6 . . . 6 Max Kills in Single Turn 2 | . 1 . 2 . . . 2 Gunslinging 1 | . . . 1 . . . . Exploded 2 | . . . . . . . 2 Melee . | . . . . . . . . Uniques/NPCs Destroyed . | . . . . . . . . Combat | -11 -10 -10 -9 -9 -9 -8 -8 -------- Run | Yrd Mat Min Mat Min Exi Min Mat Hostile Shots Fired 311 | . 94 . 76 . . . 141 Missed 86 | . 27 . 22 . . . 37 Damage Taken 2872 | . 746 . 559 . . . 1567 Core 825 | . 145 . 100 . . . 580 Absorbed by Shields . | . . . . . . . . Core Remaining (%) 72 | 100 . 42 . . . 75 . Volleys Fired 84 | . 23 . 35 . . . 26 Largest 3 | . 2 . 2 . . . 3 Hottest 164 | . 136 . 130 . . . 164 Shots Fired 165 | . 46 . 70 . . . 49 Gun 129 | . 18 . 70 . . . 41 Cannon 35 | . 28 . . . . . 7 Launcher 1 | . . . . . . . 1 Special . | . . . . . . . . Kinetic 23 | . 4 . . . . . 19 Thermal 116 | . 37 . 60 . . . 19 Explosive 1 | . . . . . . . 1 Electromagnetic 25 | . 5 . 10 . . . 10 Robot Hit Streak 11 | . 8 . 11 . . . 11 Robot Miss Streak 4 | . 2 . 4 . . . 3 Penetration Max . | . . . . . . . . Secondary Targets 6 | . 1 . 4 . . . 1 Max Gunslinging Chain 1 | . 1 . 1 . . . 1 Shots Hit Robots 110 | . 26 . 43 . . . 41 Core Hits 68 | . 11 . 29 1 . . 27 Critical Kills . | . . . . . . . . Critical Parts Destroyed . | . . . . . . . . Critical Strikes 3 | . 2 . 1 . . . . Burn 2 | . 1 . 1 . . . . Corrupt 1 | . 1 . . . . . . Melee Attacks . | . . . . . . . . Impact . | . . . . . . . . Slashing . | . . . . . . . . Piercing . | . . . . . . . . Sneak Attacks . | . . . . . . . . Combat Hostiles . | . . . . . . . . Follow-up Attacks . | . . . . . . . . Damage Inflicted 2305 | . 489 . 728 3 . . 1085 Guns 1480 | . 159 . 675 . . . 646 Cannons 454 | . 330 . . . . . 124 Explosions 354 | . . . 39 . . . 315 Melee . | . . . . . . . . Ramming 17 | . . . 14 3 . . . Kinetic 404 | . 31 . . . . . 373 Thermal 1235 | . 405 . 604 . . . 226 Explosive 137 | . . . . . . . 137 Electromagnetic 512 | . 53 . 110 . . . 349 Impact . | . . . . . . . . Slashing . | . . . . . . . . Piercing . | . . . . . . . . Highest Corruption 5 | . . . . . . . 5 Average Corruption 5 | . . . . . . . 5 Corruption Purged . | . . . . . . . . Corruption Blocked . | . . . . . . . . Overload Shots . | . . . . . . . . Overflow Damage 1 | . 1 . . . . . . Projectiles 1 | . 1 . . . . . . Explosions . | . . . . . . . . Melee . | . . . . . . . . Knockbacks . | . . . . . . . . Impact . | . . . . . . . . Kinetic . | . . . . . . . . Secondary . | . . . . . . . . Self-Inflicted Damage 81 | . . . 38 . . . 43 Shots 2 | . . . 1 . . . 1 Rammed . | . . . . . . . . Targets Rammed 3 | . . . 2 1 . . . Kicked 3 | . . . 2 1 . . . Crushed . | . . . . . . . . Highest Temperature 499 | . 499 . 452 . . . 207 Average Temperature 147 | . 175 . 155 . . . 63 Received Heat Transfer 1035 | . 351 . 171 . . . 513 Effects 4 | . 2 . 2 . . . . Shutdowns 3 | . 1 . 2 . . . . Damage (minor) 1 | . 1 . . . . . . Siege Activations . | . . . . . . . . Robots Corrupted 1 | . . . . . . . 1 Combat Hostiles 1 | . . . . . . . 1 Parts Fried 2 | . 1 . . . . . 1 Impact Corruptions . | . . . . . . . . Robots Melted . | . . . . . . . . Combat Hostiles . | . . . . . . . . Parts Melted 4 | . . . 4 . . . . Heat Transferred 2825 | . 888 . 1493 . . . 444 Parts Sabotaged . | . . . . . . . . Parts Stolen . | . . . . . . . . Parts Stripped . | . . . . . . . . Power Chain Reactions 2 | . . . 2 . . . . Alert | -11 -10 -10 -9 -9 -9 -8 -8 ------- Run | Yrd Mat Min Mat Min Exi Min Mat Peak Influence 437 | . 202 78 437 170 . 30 184 Initial 170 | . . 78 29 170 . . 17 Average 105 | . 95 78 195 78 . 4 89 Maximum Alert Level 2 | . 1 . 2 . . . . Low Security (%) 86 | 100 82 100 56 100 . 100 100 Level 1 12 | . 17 . 38 . . . . Level 2 1 | . . . 4 . . . . Level 3 . | . . . . . . . . Level 4 . | . . . . . . . . Level 5 . | . . . . . . . . High Security . | . . . . . . . . Max Security . | . . . . . . . . Squads Dispatched 12 | . 3 . 4 . . . 5 Investigation 6 | . 2 . 3 . . . 1 Extermination . | . . . . . . . . Reinforcement 3 | . 1 . 1 . . . 1 Assault . | . . . . . . . . Garrison 3 | . . . . . . . 3 Intercept . | . . . . . . . . Searches Triggered . | . . . . . . . . Construction Impeded . | . . . . . . . . Haulers Reinforced . | . . . . . . . . Active Scanning Responses . | . . . . . . . . Cargo Convoy Interrupts . | . . . . . . . . Stealth | -11 -10 -10 -9 -9 -9 -8 -8 --------- Run | Yrd Mat Min Mat Min Exi Min Mat Distress Signals 4 | . . . 1 . . . 3 Communications Jammed . | . . . . . . . . Distress Signals . | . . . . . . . . Times Spotted 67 | . 12 . 29 . . 3 23 Peak Tracking Total 12 | . 4 . 7 . . 3 12 Tactical Retreats 5 | . . . 3 . . 2 . Traps | -11 -10 -10 -9 -9 -9 -8 -8 ------- Run | Yrd Mat Min Mat Min Exi Min Mat Traps Triggered 3 | . 1 . 1 . . . 1 Indirectly . | . . . . . . . . Trap Hack Attempts . | . . . . . . . . Triggered . | . . . . . . . . Disarmed . | . . . . . . . . Reprogrammed . | . . . . . . . . Reused . | . . . . . . . . Traps Extracted . | . . . . . . . . Installed . | . . . . . . . . Triggered . | . . . . . . . . Machines | -11 -10 -10 -9 -9 -9 -8 -8 ---------- Run | Yrd Mat Min Mat Min Exi Min Mat Machines Disabled 3 | . 1 . . . . . 2 Max in Single Turn 1 | . 1 . . . . . 1 Machines Repaired . | . . . . . . . . Machines Dismantled . | . . . . . . . . Machines Sabotaged . | . . . . . . . . Overloaded Fab Kills . | . . . . . . . . Hacking | -11 -10 -10 -9 -9 -9 -8 -8 --------- Run | Yrd Mat Min Mat Min Exi Min Mat Machines Accessed 11 | . 3 . 2 1 4 . 1 Terminals 6 | . 3 . 2 . . . 1 Fabricators . | . . . . . . . . Repair Stations . | . . . . . . . . Recycling Units . | . . . . . . . . Scanalyzers . | . . . . . . . . Garrison Access . | . . . . . . . . Total Hacks 21 | . 7 . 4 1 4 . 5 Successful 12 | . 5 . . 1 4 . 2 Failed 9 | . 2 . 4 . . . 3 Catastrophic 1 | . . . 1 . . . . Database Lockouts . | . . . . . . . . Manual 4 | . 1 . 3 . . . . Terminals 16 | . 7 . 4 . . . 5 Fabricators . | . . . . . . . . Repair Stations . | . . . . . . . . Recycling Units . | . . . . . . . . Scanalyzers . | . . . . . . . . Garrison Access . | . . . . . . . . Terminal Hacks 12 | . 5 . . 1 4 . 2 Record 7 | . 3 . . . 4 . . Open Door 1 | . . . . 1 . . . Branch Access Points 2 | . 1 . . . . . 1 Recall Reinforcements 1 | . . . . . . . 1 Registered Components 1 | . 1 . . . . . . Fabricator Hacks . | . . . . . . . . Repair Station Hacks . | . . . . . . . . Recycling Unit Hacks . | . . . . . . . . Scanalyzer . | . . . . . . . . Garrison Access Hacks . | . . . . . . . . Unauthorized Hacks . | . . . . . . . . Terminals . | . . . . . . . . Fabricators . | . . . . . . . . Repair Stations . | . . . . . . . . Recycling Units . | . . . . . . . . Scanalyzers . | . . . . . . . . Garrison Access . | . . . . . . . . Data Cores Recovered . | . . . . . . . . Used . | . . . . . . . . Hacking Detections 6 | . 3 . 2 . . . 1 Full Trace Events 5 | . 2 . 2 . . . 1 Feedback Events . | . . . . . . . . Feedback Blocked . | . . . . . . . . Robot Schematics Acquired . | . . . . . . . . Robots Built . | . . . . . . . . Authchips . | . . . . . . . . Time . | . . . . . . . . Total Robot Build Rating . | . . . . . . . . Part Schematics Acquired . | . . . . . . . . Parts Built . | . . . . . . . . Authchips . | . . . . . . . . Time . | . . . . . . . . Total Part Build Rating . | . . . . . . . . Parts Repaired . | . . . . . . . . Time . | . . . . . . . . Parts Recycled . | . . . . . . . . Recycled Matter . | . . . . . . . . Retrieved Matter . | . . . . . . . . Retrieved Components . | . . . . . . . . Parts Scanalyzed . | . . . . . . . . Part Schematics Acquired . | . . . . . . . . Parts Damaged . | . . . . . . . . Bothacking | -11 -10 -10 -9 -9 -9 -8 -8 ------------ Run | Yrd Mat Min Mat Min Exi Min Mat Used RIF Installer . | . . . . . . . . Robots Hacked . | . . . . . . . . Non-combat . | . . . . . . . . Combat . | . . . . . . . . Robot Hacks Applied . | . . . . . . . . Relay Couplers Released . | . . . . . . . . Fabnet Peak Effective % . | . . . . . . . . Robots Rewired . | . . . . . . . . Allies Hacked . | . . . . . . . . Hacks Repelled . | . . . . . . . . Allies | -11 -10 -10 -9 -9 -9 -8 -8 -------- Run | Yrd Mat Min Mat Min Exi Min Mat Total Allies 1 | . . . . 1 . . . Largest Group 1 | . . . . 1 . . . Highest-Rated Group 31 | . . . . 31 . . . Highest-Rated Ally 31 | . . . . 31 . . . Total Orders . | . . . . . . . . Ally Attacks . | . . . . . . . . Total Damage . | . . . . . . . . Kills . | . . . . . . . . Allies Corrupted . | . . . . . . . . Allies Melted . | . . . . . . . . Intel | -11 -10 -10 -9 -9 -9 -8 -8 ------- Run | Yrd Mat Min Mat Min Exi Min Mat Robot Analysis Total . | . . . . . . . . Derelict Logs Recovered 1 | . . . . 1 . . . Drone Launches . | . . . . . . . . Drone Recoveries . | . . . . . . . . Exploration | -11 -10 -10 -9 -9 -9 -8 -8 ------------- Run | Yrd Mat Min Mat Min Exi Min Mat Turns Passed 3045 | 88 308 29 611 860 706 136 307 Spaces Moved 2160 | 83 182 20 368 659 584 111 153 Core 61 | 42 . . . . . . 19 Treads . | . . . . . . . . Legs 2099 | 41 182 20 368 659 584 111 134 Wheels . | . . . . . . . . Hover . | . . . . . . . . Flight . | . . . . . . . . Fastest Speed 50 | 50 120 120 120 120 120 120 100 Average Speed 119 | 84 120 120 120 120 120 120 136 Slowest Speed 450 | 120 190 120 120 120 120 120 450 Overloaded Moves . | . . . . . . . . Propulsion Burnouts . | . . . . . . . . Robots Hopped . | . . . . . . . . Cave-ins Triggered . | . . . . . . . . Exploration Rate (%) 40 | 4 34 7 33 95 94 37 21 Regions Visited 7 Branch Regions 4 Pre-discovered Areas . | . . . . . . . . Known Exits Taken 1 | . 1 . . . . . . Unknown Exits Taken 6 | 1 . 1 1 1 1 1 . Scrap Searched 4 | . . . . 1 . 3 . Spaces Dug . | . . . . . . . . Terrain Destroyed 13 | . . . 13 . . . . Melee . | . . . . . . . . Projectile . | . . . . . . . . AOE 13 | . . . 13 . . . . Terrain Rammed . | . . . . . . . . Walls Destroyed . | . . . . . . . . Machines Disabled . | . . . . . . . . Actions | -11 -10 -10 -9 -9 -9 -8 -8 --------- Run | Yrd Mat Min Mat Min Exi Min Mat Total 2459 | 100 224 25 470 728 590 114 208 Wait 135 | . 7 5 41 67 1 . 14 Move 2153 | 82 181 19 367 658 583 110 153 Hop . | . . . . . . . . Pick Up 31 | 11 4 1 6 1 3 . 5 Fast Attach 10 | 1 3 . 3 . . 2 1 Attach 19 | 5 4 . 2 . . . 8 Detach . | . . . . . . . . Swap 5 | 1 . . 4 . . . . Drop 19 | . 2 . 10 1 3 2 1 Fire 84 | . 23 . 35 . . . 26 Melee . | . . . . . . . . Ram . | . . . . . . . . Kick 3 | . . . 2 1 . . . Crush . | . . . . . . . . Escape Stasis . | . . . . . . . . Rewire . | . . . . . . . . Trap . | . . . . . . . . Miscellaneous . | . . . . . . . . Route ------- -11/Scrapyard -10/Materials -10/Mines -9/Materials -9/Mines (discovered 2 exits: *Mat / *Exi) -9/Exiles (discovered 2 exits: [*Min x2]) -8/Mines -8/Materials (discovered 2 exits: Sto x2) History --------- Turn | Location | Event 6 | -11/Scrapyard | Discovered new exit (range 15) 89 | -11/Scrapyard | Entered Materials 230 | -10/Materials | Discovered new exit (range 18) 306 | -10/Materials | Build established: Mutant 339 | -10/Materials | Core integrity fell below 50% 373 | -10/Materials | Lost 3 parts (1p2n) 390 | -10/Materials | Identified exit to Mines 397 | -10/Materials | Entered Mines 412 | -10/Mines | Discovered new exit (range 6) 420 | -10/Mines | Received a Rocket Launcher from a helpful Derelict 426 | -10/Mines | Entered Materials 426 | -9/Materials | Evolved 2 slots: Propulsion x2 877 | -9/Materials | Build established: Scavenger-Mutant 944 | -9/Materials | Discovered new exit (range 17) 1037 | -9/Materials | Entered Mines 1198 | -9/Mines | Learned Materials stockpile data 1400 | -9/Mines | Received a Mining Laser from a helpful Derelict 1620 | -9/Mines | Discovered new exit (range 16) 1633 | -9/Mines | Found the Drone Emporium 1639 | -9/Mines | Found Prototype Device 1890 | -9/Mines | Deemed a non-threat by the Exiles lab entrance 1891 | -9/Mines | Discovered new exit (range 5) 1897 | -9/Mines | Entered Exiles 1897 | -9/Exiles | Found Exiles lab abandoned 1913 | -9/Exiles | Discovered new exit (range 17) 2204 | -9/Exiles | Discovered new exit (range 11) 2603 | -9/Exiles | Entered Mines 2729 | -8/Mines | Discovered new exit (range 11) 2739 | -8/Mines | Entered Materials 2739 | -8/Materials | Evolved 2 slots: Utility x1, Weapon x1 2811 | -8/Materials | Garrison activated, responded to threat 2857 | -8/Materials | Identified exit to Storage 2920 | -8/Materials | Lost 7 parts (1p3n3w) 3018 | -8/Materials | Core integrity fell below 50% 3045 | -8/Materials | Core integrity fell below 20% 3046 | -8/Materials | Destroyed by S-10 Pest via exploding Nuclear Reactor Last Messages --------------- W-25 Informer sends out distress signal. G-47 Trooper destroyed. Terminal disabled. Deuterium Engine destroyed. O-16 Technician sends out distress signal. O-16 Technician: "IFF HANDSHAKE FAILED. SECURING TERMINAL." Y-45 Defender destroyed. U-05 Engineer lays Concrete. K-01 Serf collects debris. Rocket Launcher destroyed. System corrupted by crushing effect (+5). Field Laser destroyed. U-05 Engineer lays Concrete. Acquired 15 matter. U-05 Engineer lays Concrete. G-47 Trooper destroyed. U-05 Engineer lays Concrete. Critical hit (Burn: +37). Nuclear Reactor explodes. Map ----- +----------------------------------------------------+ | ??????????????????????????????????? | | ??????????????????????????????????? | | ??????????????????????????????????? | | ??????????????????????????????????? | | ??????????????????????????????????? | | ??????????????????????????????????? | | ??????????????????????????????????? | | ??????????????????????????????????? | | ??????????????????????????????????? | | ??????????????????????????????????? | | ??????????????????????????????????? | | ??????????????????????????????????? | | ??????????????????????????????????? | | ??????????????????????????????????? | | ??????????????????????????????????? | | ??????????????????????????????????? | | ??????????????????????????????????? | | ??????????????????????????????????? | | ??????????????????????????????????? | | ?????????????? ???????????????????? | | ?????????#####+### ???????????????? | | ????????? ???????????????? | | ????????? ???????????????? | | ?????????#% ? #????? ???????? | | ?????#####/### ????? ????????? | | ?????# bg @ # #####+###??????? | | ?????# s # ??????? | | ?????# s ?????? | | ?????#%s # "" ?????? | | ?????# l # " ??????? | | ?????#+##/#### "???????? | | ?????# Y#??# =%u ""???????? | | ?????# #??# * """??????? | | #????#### #??# """??????? | | # ???### #### """ ????? | | #^ ?# ## ??? | | # # ##= [[[ ??? | | ? + T [%!* [[ """?????? | | ?*????# ### [[ """"?????? | | ??????# #?# """??????? | | ??????###+##### """??????? | | ???????# # """ ????? | | ???????# # ??? | | ???????# ! / ??? | | ???????# ![ # ##########"T"?????? | | ???????# # #?#####????#??????? | | ???????#[ # #?"""""???????????? | | ???????######## # """"" #?????????? | | ??????????????# # """"" #?????????? | | ??????????????# + #?????????? | +----------------------------------------------------+ Best States ------------- Heat Dissipation 31 Energy Generation 14 Energy Capacity 275 Matter Stores 300 Matter Capacity 300 Sight Range 18 Terrain Scan Density 10 Evasion (%) 55 Targeting Accuracy 8 Item Schematics ----------------- None Robot Schematics ------------------ None Fabricated ------------ Nothing Alien Tech Used ----------------- None Achievements -------------- None Challenges ------------ None Game ------ Seed GammaHardcellMantle Manual? 0 Play Time 00:28:39 Cumulative 12.9 hours Start 2025.03.02 @ 02:33:30 End 2025.03.02 @ 17:28:55 Sessions 4 Manual Loads 0 Difficulty Rogue Special Mode None Game No. 33 Rogue 30 Adventurer 1 Explorer 2 Win Type - Total 0 Types 0/0/0/0/0/0/0/0/0 Lore% 13 Gallery% 20 Achievement% 19 Wizard Run 0 Options --------- Layout 1 ASCII 0 Keyboard 0 Movement Numpad Keybinds 0 Fullscreen 1 Font 48/Smallcaps Map View 50x35 Zoom Use 0% Tactical HUD 0 Map Filters NONE Filters NONE Steam 1 RUN: 974f79e7-7636-49d5-bed0-c5dda62bca9a